bitfinex-derivatives/quotes_ETHF0:USTF0_20250530
["timestamp","ask_amount","ask_price","bid_price","bid_amount"]
[1748570242158,1.0694677,2598.4,2597.9,1.30613857]
[1748570242359,1.3418,2598.5,2597.9,1.30613857]
[1748570242656,1.06941067,2598.4,2597.9,1.30613857]
[1748570242858,1.3418,2598.5,2597.9,1.30613857]
[1748570243059,1.06948784,2598.4,2597.9,1.30613857]
[1748570243264,1.3418,2598.5,2597.9,1.30613857]
[1748570243465,1.06949099,2598.4,2597.9,1.30613857]
[1748570243766,1.3418,2598.5,2597.9,1.30613857]
[1748570243966,1.06949756,2598.4,2597.9,1.30613857]
[1748570244167,1.3418,2598.5,2597.9,1.30613857]
[1748570244360,1.06949354,2598.4,2597.9,1.30613857]
[1748570244562,1.3418,2598.5,2597.9,1.30613857]
[1748570244872,1.06948676,2598.4,2597.9,1.30613857]
[1748570245070,1.3418,2598.5,2597.9,1.30613857]
[1748570245371,1.06947536,2598.4,2597.9,1.30613857]
[1748570245559,1.3418,2598.5,2597.9,1.30613857]
[1748570245762,1.06955842,2598.4,2597.9,1.30613857]
[1748570245969,1.3418,2598.5,2597.9,1.30613857]
[1748570246168,1.06954227,2598.4,2598.0,3.2078]
[1748570246369,3.2078,2598.6,2598.1,1.9883]
[1748570246579,1.06945821,2598.5,2598.2,5.3534]
[1748570246764,3.2078,2598.6,2598.3,1.3274]
[1748570246968,1.06955588,2598.5,2598.3,1.3274]
[1748570247169,1.8784,2598.7,2598.3,1.3274]
[1748570247379,1.26190884,2598.6,2598.3,1.3274]
[1748570247675,0.1924,2598.6,2598.3,1.3274]
[1748570248873,1.06961032,2598.5,2598.1,1.2917]
[1748570249073,5.49843508,2598.4,2597.9,4.09593857]
[1748570249275,1.221,2598.3,2597.9,4.09593857]
[1748570249477,1.221,2598.3,2598.0,1.2744]
[1748570249977,0.1924,2598.6,2598.1,0.6163]
[1748570250181,2.39817787,2598.5,2598.1,0.6163]
[1748570250383,1.3283,2598.5,2598.1,0.6163]
[1748570250698,1.3283,2598.5,2598.2,1.2948]
[1748570250872,0.1924,2598.6,2598.2,1.2948]
[1748570251074,1.5207,2598.6,2598.3,4.026]
[1748570251381,1.06992162,2598.5,2598.3,4.026]
[1748570251681,1.3283,2598.4,2598.3,4.026]
[1748570253169,0.1924,2598.6,2598.3,4.026]
[1748570253682,1.4555,2598.6,2598.3,4.026]
[1748570253979,1.4555,2598.6,2598.3,5.252]
[1748570255376,1.4555,2598.6,2598.3,4.026]
[1748570255679,1.4555,2598.6,2598.2,0.6393]
[1748570255876,1.4555,2598.6,2598.3,4.026]
[1748570256982,1.4555,2598.6,2598.2,1.99293857]
[1748570257278,1.4555,2598.6,2598.3,4.026]
[1748570257675,1.07075628,2598.5,2598.3,4.026]
[1748570257874,1.4555,2598.6,2598.3,4.026]
[1748570258069,1.4555,2598.6,2598.2,1.99293857]
[1748570258070,1.0708052,2598.5,2598.2,1.99293857]
[1748570258278,3.2078,2598.4,2598.3,4.026]
[1748570258474,4.27866567,2598.4,2598.2,0.06993857]
[1748570258776,3.01086567,2598.3,2598.2,0.06993857]
[1748570260172,1.07086567,2598.3,2598.2,0.06993857]
[1748570260371,0.1924,2598.6,2598.2,0.06993857]
[1748570260577,1.07137939,2598.5,2598.2,0.06993857]
[1748570260780,1.07137939,2598.4,2598.2,0.06993857]
[1748570261383,1.9371,2598.3,2598.2,0.06993857]
[1748570261681,3.00952729,2598.3,2598.2,0.06993857]
[1748570262072,1.07242729,2598.3,2598.2,0.06993857]
[1748570262682,0.807,2598.6,2598.2,0.06993857]
[1748570262879,1.07233372,2598.5,2598.3,1.9169]
[1748570263080,1.07233372,2598.4,2598.3,1.9169]
[1748570263480,1.07233372,2598.4,2598.3,0.628]
[1748570265680,1.07233372,2598.4,2598.3,2.5259]
[1748570266079,1.07237114,2598.4,2598.3,2.5259]
[1748570267283,1.07237114,2598.4,2598.3,0.628]
[1748570267485,4.28017114,2598.4,2598.2,0.06993857]
[1748570267682,1.07237114,2598.3,2598.2,4.08893857]
[1748570269586,2.40587114,2598.3,2598.2,0.06993857]
[1748570270089,3.03677114,2598.3,2597.9,4.6908]
[1748570270277,3.05010065,2598.2,2597.9,4.6908]
[1748570270477,2.40620065,2598.1,2597.9,4.6908]
[1748570270681,1.07270065,2598.0,2597.9,6.0453]
[1748570271685,0.6439,2598.2,2597.9,6.0453]
[1748570271882,1.07238413,2598.1,2597.9,6.0453]
[1748570272087,0.6439,2598.2,2597.9,6.0453]
[1748570272313,1.0723855,2598.1,2597.9,6.0453]
[1748570272586,3.2078,2598.4,2597.9,6.0453]
[1748570272782,1.07226399,2598.3,2598.0,1.3378]
[1748570272988,3.2078,2598.4,2598.0,1.3378]
[1748570273189,1.07216935,2598.3,2598.0,1.3378]
[1748570273391,3.2078,2598.4,2598.0,1.3378]
[1748570274384,3.2078,2598.4,2598.3,0.06993857]
[1748570274580,4.27996026,2598.4,2598.3,0.06993857]
[1748570275288,4.90006026,2598.4,2598.3,0.06993857]
[1748570275495,6.17786026,2598.4,2598.3,0.06993857]
[1748570276685,6.37026026,2598.4,2598.3,0.06993857]
[1748570278396,11.37026026,2598.4,2597.8,0.00577445]
[1748570278606,3.2078,2597.9,2597.8,0.00577445]
[1748570278886,4.28008559,2597.9,2597.8,0.00577445]
[1748570280687,9.28008559,2597.9,2597.8,0.00577445]
[1748570280891,9.28008559,2597.9,2597.1,4.02]
[1748570281087,3.2078,2597.5,2597.1,4.02]
[1748570281292,3.02457267,2597.4,2597.1,4.02]
[1748570281491,1.9529,2597.4,2597.1,4.02]
[1748570281694,3.2078,2597.2,2597.0,1.3208]
[1748570283301,3.2078,2597.2,2596.8,4.02277857]
[1748570283893,3.2078,2597.2,2596.9,1.3262]
[1748570284401,0.00577445,2597.4,2596.9,4.534]
[1748570284590,0.00577445,2597.4,2597.0,1.3262]
[1748570284994,0.00577445,2597.4,2597.1,0.6641]
[1748570285292,0.00577445,2597.4,2597.2,1.3262]
[1748570285597,0.00577445,2597.4,2597.3,4.02]
[1748570285799,0.00577445,2597.4,2597.3,4.6974]
[1748570286688,0.00577445,2597.4,2597.3,4.02]
[1748570287295,0.00577445,2597.4,2597.2,1.3262]
[1748570287600,1.28207445,2597.4,2597.1,4.75403857]
[1748570287793,1.28207445,2597.4,2597.1,0.06993857]
[1748570287993,3.2078,2597.2,2597.1,0.06993857]
[1748570289004,4.4841,2597.2,2597.1,0.06993857]
[1748570290396,5.1206,2597.2,2597.1,0.06993857]
[1748570290915,6.18790602,2597.2,2597.1,0.06993857]
[1748570291499,6.18790602,2597.2,2596.2,3.2078]
[1748570291500,11.18790602,2597.2,2596.2,3.2078]
[1748570291703,3.2078,2596.7,2596.2,5.1519]
[1748570291899,0.6579,2596.6,2596.3,1.2796]
[1748570293704,3.2078,2596.4,2596.3,1.2796]
[1748570294004,1.9012,2596.6,2596.3,1.2796]
[1748570295792,0.6579,2596.6,2596.3,1.2796]
[1748570295996,3.2078,2596.7,2596.3,1.2796]
[1748570296198,3.2078,2596.7,2596.4,0.6645]
[1748570296398,0.1925,2596.6,2596.5,1.2504]
[1748570296796,0.1925,2596.6,2596.5,5.2634]
[1748570297508,0.0382954,2596.6,2596.5,10.2634]
[1748570298808,3.21357445,2597.4,2596.5,10.2634]
[1748570299002,3.21357445,2597.4,2596.7,3.2078]
[1748570299216,0.00577445,2597.4,2596.8,1.2794]
[1748570299401,0.00577445,2597.4,2597.0,3.2078]
[1748570299608,0.00577445,2597.4,2597.1,1.9078]
[1748570299799,0.00577445,2597.4,2597.2,1.2794]
[1748570300002,0.00577445,2597.4,2597.3,4.014]
[1748570302114,0.00577445,2597.4,2597.3,7.891]
[1748570303508,0.00577445,2597.4,2597.3,12.891]
[1748570303804,0.1924,2597.5,2597.3,12.891]
[1748570304011,3.2078,2598.4,2597.3,12.891]
[1748570304309,3.2078,2598.4,2597.8,3.2078]
[1748570304511,3.2078,2598.8,2598.1,3.2078]
[1748570304708,0.00577445,2598.7,2598.2,5.32517445]
[1748570305216,0.00577445,2598.7,2598.3,1.2831]
[1748570305409,0.00577445,2598.7,2598.4,3.2078]
[1748570305605,3.2078,2599.2,2598.5,1.2831]
[1748570305807,3.2078,2599.2,2598.6,4.6249]
[1748570306105,3.2078,2599.2,2598.7,1.2831]
[1748570306509,3.21357445,2599.2,2598.7,1.2831]
[1748570306710,0.00577445,2599.2,2598.7,1.2831]
[1748570307308,0.00577445,2599.2,2598.7,1.9217]
[1748570307703,0.00577445,2599.2,2598.8,1.2831]
[1748570314915,0.00577445,2599.2,2599.1,3.2078]
[1748570315119,0.00577445,2599.2,2599.1,7.2188]
[1748570315308,0.00577445,2599.2,2599.1,12.2188]
[1748570317421,0.00577445,2599.2,2599.1,7.2188]
[1748570318126,0.00577445,2599.2,2599.1,7.2178]
[1748570318345,0.00577445,2599.2,2599.1,4.01]
[1748570319011,0.00577445,2599.2,2598.8,1.35303857]
[1748570319215,0.00577445,2599.2,2598.9,4.01]
[1748570319411,1.33107445,2599.2,2598.9,4.01]
[1748570319810,0.00577445,2599.2,2598.9,4.01]
[1748570320015,0.00577445,2599.2,2599.0,1.3195]
[1748570321019,0.00577445,2599.2,2598.9,4.01]
[1748570321223,1.31137445,2599.2,2598.9,4.01]
[1748570322021,1.31137445,2599.2,2598.9,1.2383]
[1748570322222,1.31137445,2599.2,2599.0,4.01]
[1748570325316,0.00577445,2599.2,2599.0,4.01]
[1748570325517,0.00577445,2599.2,2599.1,1.3036]
[1748570326425,0.00577445,2599.2,2599.0,4.01]
[1748570331024,0.00577445,2599.2,2599.1,0.06993857]
[1748570331524,0.00577445,2599.2,2599.1,3.27773857]
[1748570331828,0.00577445,2599.2,2599.1,0.06993857]
[1748570333726,1.07561442,2599.2,2599.1,0.06993857]
[1748570333920,1.07561442,2599.2,2599.1,1.38323857]
[1748570335028,1.07666543,2599.2,2599.1,1.38323857]
[1748570336832,0.00577445,2599.2,2599.1,1.38323857]
[1748570337425,0.00577445,2599.2,2599.1,4.59103857]
[1748570338039,3.2078,2600.1,2599.1,9.59103857]
[1748570338325,1.07095485,2600.0,2599.5,3.2078]
[1748570338627,1.07095485,2599.9,2599.6,5.3383]
[1748570338822,1.07095485,2599.8,2599.7,1.3021]
[1748570339031,1.07095485,2599.8,2599.7,1.9536]
[1748570339227,1.07067044,2599.8,2599.7,1.9536]
[1748570340432,0.00577445,2600.0,2599.7,1.9536]
[1748570340732,1.07041787,2599.9,2599.8,1.3021]
[1748570341032,0.00577445,2600.0,2599.8,1.3021]
[1748570341232,0.00577445,2600.0,2599.8,1.9524]
[1748570341534,1.07042767,2599.9,2599.5,7.21557445]
[1748570341747,3.03459557,2599.8,2599.5,4.00777445]
[1748570341941,1.9642,2599.8,2599.5,4.00777445]
[1748570342134,0.6313,2599.8,2599.6,1.2211]
[1748570342627,0.6313,2599.8,2599.5,4.00777445]
[1748570343024,0.00577445,2600.0,2599.5,4.00777445]
[1748570343239,0.00577445,2600.0,2599.6,1.2211]
[1748570343240,1.07021534,2599.9,2599.6,1.2211]
[1748570343430,0.00577445,2600.0,2599.6,1.2211]
[1748570343631,0.00577445,2600.0,2599.7,0.654]
[1748570343831,0.00577445,2600.0,2599.8,1.8981]
[1748570344029,0.00577445,2600.0,2599.9,4.002]
[1748570344238,1.07575457,2600.0,2599.9,5.2231]
[1748570344933,1.07575457,2600.0,2599.5,0.00577445]
[1748570345130,3.2078,2599.8,2599.5,0.00577445]
[1748570345327,2.33668012,2599.7,2599.5,0.00577445]
[1748570345635,1.06998012,2599.6,2599.5,0.00577445]
[1748570345840,2.33655753,2599.6,2599.5,0.00577445]
[1748570346137,1.06985753,2599.6,2599.5,0.00577445]
[1748570349745,6.06985753,2599.6,2599.5,0.00577445]
[1748570349933,6.07024164,2599.6,2599.5,0.00577445]
[1748570350241,6.07024164,2599.6,2598.9,5.9514]
[1748570350537,1.2828,2599.9,2598.9,5.9514]
[1748570350538,3.2078,2599.4,2598.9,5.9514]
[1748570350731,1.07024164,2599.3,2598.9,5.9514]
[1748570350932,1.07024164,2599.2,2598.9,5.9514]
[1748570351134,1.07024164,2599.1,2598.9,5.9514]
[1748570351339,1.07024164,2599.0,2598.9,5.9514]
[1748570351842,3.2078,2599.7,2598.9,5.9514]
[1748570352045,3.2078,2599.4,2598.9,5.9514]
[1748570352344,1.07031203,2599.3,2598.9,5.9514]
[1748570352541,1.07031203,2599.2,2598.9,5.9514]
[1748570352771,3.2078,2599.4,2598.9,5.9514]
[1748570352943,1.07030497,2599.3,2598.9,5.9514]
[1748570353242,3.2078,2599.4,2598.9,5.9514]
[1748570355140,3.8491,2599.9,2599.3,3.2078]
[1748570355342,1.07022623,2599.8,2599.4,6.6384]
[1748570355542,3.2078,2599.9,2599.5,4.002]
[1748570355740,1.07024055,2599.8,2599.6,1.3302]
[1748570355945,3.2078,2599.9,2599.6,1.3302]
[1748570356241,1.07023893,2599.8,2599.6,1.3302]
[1748570356444,1.07023893,2599.7,2599.6,1.3302]
[1748570358144,1.07026102,2599.7,2599.6,1.3302]
[1748570358538,0.63357445,2600.0,2599.6,1.3302]
[1748570358740,1.07019631,2599.9,2599.6,1.3302]
[1748570358941,1.07019631,2599.8,2599.6,1.3302]
[1748570359143,1.92217445,2600.0,2599.6,1.3302]
[1748570359144,3.2078,2599.9,2599.6,1.3302]
[1748570359448,1.07019969,2599.8,2599.6,1.40013857]
[1748570359738,4.4964,2599.9,2599.6,0.06993857]
[1748570359946,1.2886,2599.7,2599.6,0.06993857]
[1748570360144,2.35887685,2599.7,2599.6,0.06993857]
[1748570360345,7.35887685,2599.7,2599.6,0.06993857]
[1748570361347,2.35887685,2599.7,2599.6,0.06993857]
[1748570361851,1.07027685,2599.7,2599.6,0.06993857]
[1748570362241,1.07040704,2599.7,2599.6,0.06993857]
[1748570363145,6.07040704,2599.7,2599.6,0.06993857]
[1748570364354,1.07040704,2599.7,2599.6,0.06993857]
[1748570366756,1.07027269,2599.7,2599.6,0.06993857]
[1748570367444,6.07027269,2599.7,2599.6,0.06993857]
[1748570368148,6.07027269,2599.7,2598.7,0.6595]
[1748570368351,3.2078,2598.9,2598.3,5.8639]
[1748570368645,4.27807269,2598.9,2598.3,5.8639]
[1748570368849,4.27807269,2598.9,2598.4,0.6237]
[1748570369252,4.27807269,2598.9,2598.5,1.3526]
[1748570372652,4.61290624,2598.9,2598.5,1.3526]
[1748570372955,4.27807269,2598.9,2598.5,1.3526]
[1748570374353,4.60854477,2598.9,2598.5,1.3526]
[1748570374551,4.60854477,2598.9,2598.8,0.07571302]
[1748570375259,4.27665549,2598.9,2598.8,0.07571302]
[1748570376258,3.2078,2598.9,2598.8,0.07571302]
[1748570376449,4.27633342,2598.9,2598.8,0.07571302]
[1748570379851,4.27603781,2598.9,2598.8,0.07571302]
[1748570380454,3.2078,2598.9,2598.8,0.07571302]
[1748570380957,3.2078,2598.9,2598.8,1.32641302]
[1748570381161,3.2078,2598.9,2598.8,1.97741302]
[1748570385365,3.20202554,2598.9,2598.8,6.97741302]
[1748570386063,3.8477,2599.6,2598.8,6.97741302]
[1748570386262,1.06847171,2599.5,2598.8,1.97741302]
[1748570386562,1.06847171,2599.4,2598.8,1.97741302]
[1748570386781,3.8477,2599.6,2598.8,1.97741302]
[1748570386962,1.06872859,2599.5,2598.8,1.97741302]
[1748570387260,1.06872859,2599.4,2598.8,1.97741302]
[1748570387458,1.06891509,2599.3,2598.8,1.97741302]
[1748570387763,2.29524084,2600.5,2599.0,3.2078]
[1748570387764,3.2078,2599.9,2599.0,3.2078]
[1748570387963,1.2611137,2599.8,2599.1,5.9408]
[1748570388162,0.1923,2599.8,2599.1,5.9408]
[1748570388363,0.1923,2599.8,2599.2,0.6274]
[1748570388662,0.1923,2599.8,2599.3,1.2993]
[1748570391165,1.06885553,2599.7,2599.3,1.2993]
[1748570391467,0.1923,2599.8,2599.3,1.2993]
[1748570391666,1.06878711,2599.7,2599.3,1.2993]
[1748570391865,0.1923,2599.8,2599.3,1.2993]
[1748570392060,1.06877117,2599.7,2599.3,1.2993]
[1748570392258,0.1923,2599.8,2599.3,1.2993]
[1748570392469,1.06877163,2599.7,2599.3,1.2993]
[1748570392658,0.1923,2599.8,2599.3,1.2993]
[1748570392864,1.06871065,2599.7,2599.3,1.2993]
[1748570393061,0.1923,2599.8,2599.3,1.2993]
[1748570393255,1.06870521,2599.7,2599.3,1.2993]
[1748570393566,0.1923,2599.8,2599.3,1.2993]
[1748570393770,1.06852299,2599.7,2599.3,1.2993]
[1748570393971,0.1923,2599.8,2599.3,1.2993]
[1748570394164,1.06852508,2599.7,2599.3,1.2993]
[1748570394465,0.1923,2599.8,2599.3,1.2993]
[1748570395460,3.2078,2599.6,2599.3,1.2993]
[1748570395661,1.06834168,2599.5,2599.3,1.2993]
[1748570395857,1.8476,2599.5,2599.3,1.2993]
[1748570399363,1.8476,2599.5,2599.2,4.6144]
[1748570399567,1.06832374,2599.4,2599.2,5.8752]
[1748570399770,3.2078,2599.3,2599.2,3.987]
[1748570399970,4.4294,2599.3,2598.9,5.9227]
[1748570400164,4.4294,2599.3,2598.9,6.5535]
[1748570400366,4.4294,2599.3,2598.9,2.5675]
[1748570400566,4.4294,2599.3,2598.9,6.5535]
[1748570400966,1.06844129,2599.2,2598.9,6.5535]
[1748570401166,3.2078,2599.0,2598.8,0.07571302]
[1748570401481,1.68514736,2598.9,2598.8,0.07571302]
[1748570401668,1.06854736,2598.9,2598.8,0.07571302]
[1748570401872,3.2078,2599.3,2598.8,0.07571302]
[1748570402067,3.2078,2599.3,2598.9,1.9147]
[1748570402370,1.06945814,2599.2,2598.9,5.9007]
[1748570402670,1.9171,2599.2,2598.9,5.9007]
[1748570402866,1.06961881,2599.1,2598.9,5.9007]
[1748570403073,1.9171,2599.2,2598.9,4.6399]
[1748570403293,1.06969422,2599.1,2598.9,4.6399]
[1748570403474,3.2078,2599.0,2598.9,4.6399]
[1748570403780,4.27765253,2599.0,2598.9,4.6399]
[1748570403975,1.06985253,2599.0,2598.9,5.9155]
[1748570404774,3.2078,2599.3,2598.9,5.9155]
[1748570404969,1.07003529,2599.2,2598.9,5.9155]
[1748570405172,1.07003529,2599.1,2598.9,5.9155]
[1748570405367,3.2078,2599.3,2598.9,1.9295]
[1748570405566,1.69603744,2599.2,2598.9,1.9295]
[1748570405768,1.07013744,2599.1,2598.9,1.9295]
[1748570405970,1.07013744,2599.1,2598.9,1.99943857]
[1748570406178,1.07013744,2599.0,2598.9,1.99943857]
[1748570406376,1.07013744,2599.2,2598.9,1.99943857]
[1748570406573,3.2078,2599.0,2598.9,1.99943857]
[1748570406773,4.27793744,2599.0,2598.9,1.99943857]
[1748570407495,3.2078,2599.0,2598.9,0.06993857]
[1748570407668,5.53578986,2599.0,2598.9,0.06993857]
[1748570408406,4.21810024,2601.3,2598.9,0.06993857]
[1748570408407,3.83310859,2602.2,2601.1,3.2078]
[1748570408715,1.186,2603.1,2601.9,3.2078]
[1748570408914,5.36161443,2603.5,2603.0,3.25738796]
[1748570409122,9.95728394,2607.2,2603.1,27.4703435]
[1748570409123,3.853,2605.0,2603.1,27.4703435]
[1748570409315,0.00576291,2604.3,2604.1,3.25738796]
[1748570409535,2.30052831,2604.0,2603.8,0.00576291]
[1748570409707,5.359,2604.7,2604.2,3.2078]
[1748570410012,5.359,2604.7,2603.8,0.00576291]
[1748570410013,2.30052831,2603.9,2603.8,0.00576291]
[1748570410307,3.2078,2604.4,2603.9,2.26796721]
[1748570410595,3.2078,2604.4,2604.0,0.2925487]
[1748570410596,18.21356291,2604.4,2604.0,0.2925487]
[1748570410786,2.30052831,2603.7,2602.9,4.17959827]
[1748570411096,2.30052831,2603.6,2603.1,3.2078]
[1748570411296,2.30052831,2603.5,2603.2,1.1264471]
[1748570411497,2.30052831,2603.4,2603.1,3.2078]
[1748570411998,2.30052831,2603.3,2603.0,0.00576291]
[1748570412193,2.30052831,2603.2,2603.0,0.00576291]
[1748570412685,5.8791654,2603.2,2603.0,0.00576291]
[1748570413495,2.30052831,2603.1,2603.0,0.00576291]
[1748570413696,2.30052831,2603.1,2602.2,0.6307]
[1748570413697,10.50832831,2603.1,2602.0,1.13114026]
[1748570413898,10.50832831,2603.1,2602.1,1.13290207]
[1748570413899,3.2078,2602.2,2602.1,1.13290207]
[1748570414105,2.30052831,2602.1,2601.6,3.2078]
[1748570414294,3.64992831,2602.1,2601.7,1.13308388]
[1748570414490,4.01500249,2602.1,2601.8,1.13308388]
[1748570414690,2.30052831,2601.9,2601.7,0.00576291]
[1748570414892,1.2793,2601.8,2601.7,0.00576291]
[1748570417000,3.94490249,2601.8,2601.7,0.00576291]
[1748570417196,3.21356291,2602.2,2601.7,6.13785412]
[1748570417491,1.2793,2603.1,2602.1,3.2078]
[1748570417685,2.30052831,2603.2,2602.6,3.2078]
[1748570417893,2.30052831,2603.3,2602.7,2.47779121]
[1748570418088,1.2958,2603.2,2602.9,3.2078]
[1748570418507,1.2958,2603.2,2603.0,1.12991901]
[1748570418692,1.2958,2603.2,2602.9,3.2078]
[1748570418896,1.2958,2603.2,2603.0,1.12951043]
[1748570419090,0.00576291,2603.3,2602.9,8.2078]
[1748570419400,0.00576291,2603.3,2603.0,2.46919911]
[1748570419586,0.00576291,2603.3,2603.2,3.2078]
[1748570419796,0.00576291,2603.3,2603.2,9.97625514]
[1748570419995,0.00576291,2603.3,2603.2,14.97625514]
[1748570420699,3.853,2606.8,2603.2,35.54610946]
[1748570420940,0.07672536,2606.7,2604.2,1.12386049]
[1748570421210,0.07672536,2606.7,2606.4,3.2078]
[1748570421391,0.07672536,2606.7,2606.0,3.2078]
[1748570421392,3.2078,2606.6,2606.0,3.2078]
[1748570421593,0.07673124,2606.5,2606.4,3.2078]
[1748570421793,3.28453124,2606.5,2606.3,3.2078]
[1748570421993,3.2078,2606.4,2606.3,3.2078]
[1748570422198,5.5850625,2606.4,2606.3,3.2078]
[1748570422394,5.95013668,2606.4,2606.3,3.2078]
[1748570422605,0.07673419,2606.4,2606.3,9.2658]
[1748570423101,0.07673419,2606.4,2606.3,3.2078]
[1748570423294,0.07673419,2606.4,2606.3,9.2628]
[1748570423898,0.07673419,2606.4,2606.3,14.2628]
[1748570424299,0.07673419,2606.4,2606.3,9.2628]
[1748570424500,0.07673419,2606.4,2606.3,14.2628]
[1748570424691,0.00576291,2606.7,2606.3,14.2628]
[1748570424892,0.0767283,2606.6,2606.3,6.055]
[1748570425099,0.0767283,2606.6,2606.5,3.2078]
[1748570426605,0.0767283,2606.6,2606.5,14.82613361]
[1748570426800,3.64960248,2606.6,2606.5,3.77413361]
[1748570427104,5.95013079,2606.6,2606.5,3.7734228]
[1748570427296,7.21913079,2606.6,2606.5,3.7734228]
[1748570427502,8.64625661,2606.6,2606.5,0.55725418]
[1748570427702,8.64625661,2606.6,2606.1,0.00576291]
[1748570427899,2.30052831,2606.2,2606.1,0.00576291]
[1748570428799,7.30052831,2606.2,2606.1,0.00576291]
[1748570428999,7.30052831,2606.2,2605.2,3.2078]
[1748570429000,5.0,2606.2,2605.2,3.2078]
[1748570429196,2.30052831,2605.1,2604.8,3.2078]
[1748570429499,2.30052831,2605.1,2605.0,1.63575487]
[1748570430298,1.27476291,2605.3,2605.0,1.63575487]
[1748570430498,2.30052831,2605.2,2605.0,1.63575487]
[1748570430902,1.27476291,2605.3,2605.0,1.63575487]
[1748570431101,1.3343,2605.1,2605.0,7.68675487]
[1748570432205,0.43386291,2605.3,2605.0,7.68675487]
[1748570432404,0.43386291,2605.3,2605.1,3.2078]
[1748570433001,0.43386291,2605.3,2605.2,6.051]
[1748570434602,7.73439122,2605.3,2605.1,3.2078]
[1748570434807,6.74672831,2605.2,2605.0,1.63575487]
[1748570435103,2.30052831,2605.1,2604.5,3.2078]
[1748570435310,2.30052831,2604.6,2604.5,3.2078]
[1748570436507,1.2384,2605.0,2604.5,3.2078]
[1748570436898,1.2384,2605.0,2604.3,6.34583717]
[1748570436899,0.43386291,2605.3,2604.8,3.2078]
[1748570437202,0.43386291,2605.3,2605.1,3.2078]
[1748570437407,0.43386291,2605.3,2605.2,6.051]
[1748570439105,0.43386291,2605.3,2605.2,7.1695841]
[1748570439911,1.3066,2606.0,2605.2,12.1695841]
[1748570440109,1.3066,2606.0,2605.8,3.2078]
[1748570440110,2.30052831,2605.9,2605.8,3.2078]
[1748570440402,1.3066,2606.0,2605.8,3.2078]
[1748570440803,2.30052831,2605.9,2605.8,3.2078]
[1748570442699,2.30052831,2605.9,2605.8,0.54629894]
[1748570442902,7.30052831,2605.9,2605.8,0.54630872]
[1748570443105,2.30052831,2605.9,2605.6,0.00576291]
[1748570443310,0.00576291,2606.1,2605.6,0.00576291]
[1748570443311,2.30052831,2605.7,2605.6,0.00576291]
[1748570443708,1.2258,2605.8,2605.6,0.00576291]
[1748570443908,2.30052831,2605.8,2605.7,3.2078]
[1748570444320,1.6528,2606.0,2605.7,3.2078]
[1748570444512,0.427,2606.0,2605.7,4.439]
[1748570444712,0.427,2606.0,2605.8,1.2312]
[1748570444907,0.427,2606.0,2605.9,0.53579304]
[1748570445103,0.427,2606.0,2605.9,5.811]
[1748570445710,2.72752831,2606.0,2605.9,0.53717523]
[1748570445919,7.72752831,2606.0,2605.9,0.53727064]
[1748570446109,7.72752831,2606.0,2605.7,3.2078]
[1748570446110,9.05262831,2606.0,2605.7,3.2078]
[1748570446414,2.30052831,2605.8,2605.7,3.2078]
[1748570446811,2.30052831,2605.8,2605.7,3.73800399]
[1748570447011,2.30052831,2605.8,2605.7,4.86280176]
[1748570447207,2.30052831,2605.8,2605.7,1.96349748]
[1748570447412,2.30052831,2605.8,2605.7,1.96667729]
[1748570447714,2.30052831,2605.8,2605.7,1.12479777]
[1748570448016,2.30052831,2605.8,2605.7,1.43331292]
[1748570448324,8.2078,2605.8,2605.0,2.27019898]
[1748570448524,3.2078,2605.1,2604.1,4.5586]
[1748570448814,3.2078,2604.7,2604.4,0.07679311]
[1748570449517,3.2078,2604.8,2604.4,0.07679311]
[1748570450923,3.2078,2604.5,2604.4,0.07679311]
[1748570451419,8.2078,2604.5,2604.4,0.07679311]
[1748570452841,3.2078,2604.5,2604.4,0.07679311]
[1748570453013,3.2078,2604.5,2604.3,0.29483717]
[1748570453208,1.2693,2604.4,2604.3,0.29483717]
[1748570454320,3.2078,2604.5,2604.3,0.29483717]
[1748570454720,0.00576291,2604.7,2604.4,1.2836]
[1748570457216,3.21356291,2604.7,2604.3,0.29483717]
[1748570457422,0.00576291,2604.7,2604.3,3.50263717]
[1748570457614,0.00576291,2604.7,2604.4,1.32]
[1748570458923,0.1913,2605.0,2604.6,3.2078]
[1748570459126,0.1913,2605.0,2604.9,3.2078]
[1748570459324,3.2078,2605.7,2604.9,8.7738]
[1748570459527,3.2078,2605.7,2605.2,3.2078]
[1748570459723,3.2078,2605.7,2605.3,1.32]
[1748570460027,3.21356291,2605.7,2605.3,1.32]
[1748570460325,3.2078,2605.4,2604.7,5.566]
[1748570460521,3.2078,2605.4,2604.5,3.8758]
[1748570460724,1.2906,2605.3,2604.6,5.566]
[1748570460936,1.2906,2605.3,2604.8,3.2078]
[1748570461430,1.2906,2605.3,2604.5,6.234]
[1748570461431,0.00576291,2605.7,2605.1,3.2078]
[1748570461638,0.00576291,2605.7,2605.4,3.2078]
[1748570462327,0.00576291,2605.7,2605.0,3.2078]
[1748570462527,0.00576291,2605.7,2605.3,3.2078]
[1748570462842,0.00576291,2605.7,2604.9,8.7728]
[1748570463124,0.00576291,2605.7,2605.2,3.2078]
[1748570463922,0.00576291,2605.7,2605.3,1.3284]
[1748570465329,0.4166,2605.6,2605.3,1.3284]
[1748570465519,0.4166,2605.6,2605.2,3.2078]
[1748570465723,1.7485,2605.6,2605.3,1.3284]
[1748570465926,0.4166,2605.6,2605.3,1.3284]
[1748570467255,0.4166,2605.6,2605.5,3.2078]
[1748570467829,0.4166,2605.6,2605.5,4.5017]
[1748570468126,0.4166,2605.6,2605.5,10.0667]
[1748570468333,3.2078,2606.5,2605.5,15.6912]
[1748570468533,3.2078,2606.5,2605.8,3.2078]
[1748570468830,3.2078,2606.5,2605.9,1.2939]
[1748570469221,3.2078,2606.5,2605.9,1.29966291]
[1748570469425,3.21356291,2606.5,2605.9,1.29966291]
[1748570470930,3.2078,2606.2,2605.9,1.29966291]
[1748570471946,8.2078,2606.2,2605.9,0.00576291]
[1748570472124,1.9051,2606.1,2604.8,10.6964]
[1748570472330,3.2078,2605.4,2604.8,10.6964]
[1748570472731,3.2078,2605.8,2604.8,10.6964]
[1748570473029,1.3474,2605.7,2605.0,0.00576291]
[1748570474541,3.2078,2605.5,2605.0,0.00576291]
[1748570474836,1.3474,2605.4,2605.0,0.00576291]